[Event "*** Titled Tuesday 3|2 Blitz"]
[Site "Chess.com"]
[Date "2017.03.07"]
[Round "7"]
[White "daro94"]
[Black "rasmussvane"]
[Result "1-0"]
[WhiteElo "2687"]
[BlackElo "2514"]
[TimeControl "180+2"]
[EndTime "14:38:29 PST"]
[Termination "daro94 won by resignation"]

1. c4 {[%clk 0:03:01.9]} 1... Nf6 {[%clk 0:02:56.8]} 2. Nc3 {[%clk 0:03:02.9]}
2... c5 {[%clk 0:02:53.5]} 3. Nf3 {[%clk 0:03:02.8]} 3... Nc6 {[%clk 0:02:53.4]}
4. e3 {[%clk 0:03:03.8]} 4... e6 {[%clk 0:02:49.4]} 5. d4 {[%clk 0:03:03]} 5...
d5 {[%clk 0:02:50.4]} 6. cxd5 {[%clk 0:03:03.9]} 6... Nxd5 {[%clk 0:02:50.3]} 7.
Bd3 {[%clk 0:03:02.6]} 7... Be7 {[%clk 0:02:46]} 8. O-O {[%clk 0:03:03.5]} 8...
O-O {[%clk 0:02:47]} 9. a3 {[%clk 0:03:02.5]} 9... b6 {[%clk 0:02:42.2]} 10. Qc2
{[%clk 0:02:46.7]} 10... Nxc3 {[%clk 0:02:12.8]} 11. bxc3 {[%clk 0:02:43.9]}
11... g6 {[%clk 0:02:11.9]} 12. Bb2 {[%clk 0:02:38.1]} 12... Bb7 {[%clk
0:02:09.3]} 13. e4 {[%clk 0:02:39.5]} 13... Rc8 {[%clk 0:02:10.2]} 14. Qe2
{[%clk 0:02:40.7]} 14... Bf6 {[%clk 0:02:04.5]} 15. Qe3 {[%clk 0:02:12.7]} 15...
Na5 {[%clk 0:01:57.3]} 16. Rac1 {[%clk 0:01:59.1]} 16... Bg7 {[%clk 0:01:55.8]}
17. h4 {[%clk 0:01:55.5]} 17... Qd7 {[%clk 0:01:29.9]} 18. h5 {[%clk 0:01:52.3]}
18... Rfd8 {[%clk 0:01:30.8]} 19. Qf4 {[%clk 0:01:28.3]} 19... Nb3 {[%clk
0:01:21.8]} 20. Rcd1 {[%clk 0:01:25.2]} 20... cxd4 {[%clk 0:01:20.6]} 21. cxd4
{[%clk 0:01:18.8]} 21... Nxd4 {[%clk 0:01:13]} 22. Bxd4 {[%clk 0:00:59.5]} 22...
Bxd4 {[%clk 0:01:11.5]} 23. Bb1 {[%clk 0:00:59.3]} 23... e5 {[%clk 0:01:07.7]}
24. Qh6 {[%clk 0:01:00.3]} 24... f6 {[%clk 0:00:19.6]} 25. hxg6 {[%clk
0:00:49.4]} 25... Qg7 {[%clk 0:00:20.1]} 26. gxh7+ {[%clk 0:00:49.1]} 26... Kh8
{[%clk 0:00:21]} 27. Qxg7+ {[%clk 0:00:38.5]} 27... Kxg7 {[%clk 0:00:22]} 28.
Nxd4 {[%clk 0:00:40.3]} 28... exd4 {[%clk 0:00:20.6]} 29. Rfe1 {[%clk
0:00:39.7]} 29... Rc3 {[%clk 0:00:19]} 30. e5 {[%clk 0:00:38.9]} 30... d3 {[%clk
0:00:15.8]} 31. exf6+ {[%clk 0:00:38.2]} 31... Kxf6 {[%clk 0:00:17.2]} 32. Rxd3
{[%clk 0:00:36.9]} 32... Rcxd3 {[%clk 0:00:15.2]} 33. Bxd3 {[%clk 0:00:38.1]}
33... Bd5 {[%clk 0:00:11.9]} 34. Bc2 {[%clk 0:00:30.1]} 34... Bf7 {[%clk
0:00:11.2]} 35. f3 {[%clk 0:00:21.8]} 35... Rh8 {[%clk 0:00:09.8]} 36. Kf2
{[%clk 0:00:22.4]} 36... Bg6 {[%clk 0:00:08.2]} 37. Bxg6 {[%clk 0:00:23.4]}
37... Kxg6 {[%clk 0:00:09.7]} 38. Re6+ {[%clk 0:00:24.9]} 38... Kxh7 {[%clk
0:00:09.7]} 39. Re7+ {[%clk 0:00:26.2]} 39... Kg6 {[%clk 0:00:11.3]} 40. Rxa7
{[%clk 0:00:28.1]} 40... Rc8 {[%clk 0:00:12.4]} 41. Kg3 {[%clk 0:00:28.7]} 41...
Kf5 {[%clk 0:00:13.2]} 42. Rb7 {[%clk 0:00:26.5]} 42... Rc6 {[%clk 0:00:14.5]}
43. a4 {[%clk 0:00:27.4]} 43... Ke5 {[%clk 0:00:15.8]} 44. Ra7 {[%clk
0:00:28.2]} 44... Kd4 {[%clk 0:00:17]} 45. Kf2 {[%clk 0:00:28.6]} 45... Kc4
{[%clk 0:00:16]} 46. g4 {[%clk 0:00:28.8]} 46... Kd3 {[%clk 0:00:15.4]} 47. Kg3
{[%clk 0:00:26.7]} 47... Re6 {[%clk 0:00:13.2]} 48. g5 {[%clk 0:00:25.4]} 48...
Ke3 {[%clk 0:00:13.9]} 49. Rf7 {[%clk 0:00:25.1]} 49... Re5 {[%clk 0:00:12.3]}
50. Kg4 {[%clk 0:00:25.5]} 50... Rd5 {[%clk 0:00:13.2]} 51. Re7+ {[%clk
0:00:26.1]} 1-0

[Event "*** Titled Tuesday 3|2 Blitz"]
[Site "Chess.com"]
[Date "2017.03.07"]
[Round "7"]
[White "Dlugy"]
[Black "MattyDPerrine"]
[Result "1-0"]
[WhiteElo "2654"]
[BlackElo "2216"]
[TimeControl "180+2"]
[EndTime "14:38:49 PST"]
[Termination "Dlugy won by resignation"]

1. d4 {[%clk 0:03:02]} 1... Nf6 {[%clk 0:02:57]} 2. Bf4 {[%clk 0:03:02.6]} 2...
g6 {[%clk 0:02:55.5]} 3. Nc3 {[%clk 0:03:03]} 3... Bg7 {[%clk 0:02:54.4]} 4. e4
{[%clk 0:03:01.2]} 4... d6 {[%clk 0:02:55.7]} 5. Qd2 {[%clk 0:03:02.1]} 5... c6
{[%clk 0:02:44]} 6. O-O-O {[%clk 0:02:55]} 6... b5 {[%clk 0:02:44.9]} 7. f3
{[%clk 0:02:55.8]} 7... Nbd7 {[%clk 0:02:28.6]} 8. e5 {[%clk 0:02:44.5]} 8... b4
{[%clk 0:02:08.5]} 9. exf6 {[%clk 0:02:28.1]} 9... bxc3 {[%clk 0:02:09.5]} 10.
Qxc3 {[%clk 0:02:29.8]} 10... Nxf6 {[%clk 0:02:05.3]} 11. Qxc6+ {[%clk
0:02:28.5]} 11... Bd7 {[%clk 0:02:06.8]} 12. Qa6 {[%clk 0:02:29.7]} 12... O-O
{[%clk 0:01:57.7]} 13. Bc4 {[%clk 0:02:30.7]} 13... Rc8 {[%clk 0:01:54.8]} 14.
Bb3 {[%clk 0:02:31.6]} 14... Qc7 {[%clk 0:01:49.9]} 15. Ne2 {[%clk 0:02:28.2]}
15... Nd5 {[%clk 0:01:40.5]} 16. Bd2 {[%clk 0:02:12.6]} 16... Bf5 {[%clk
0:01:27.4]} 17. Nc3 {[%clk 0:02:09]} 17... Nb4 {[%clk 0:01:15.4]} 18. Qa4 {[%clk
0:02:09.8]} 18... a5 {[%clk 0:01:08.9]} 19. Nb5 {[%clk 0:01:18.7]} 19... Qxc2+
{[%clk 0:00:32]} 20. Bxc2 {[%clk 0:01:19.3]} 20... Bxc2 {[%clk 0:00:33.9]} 21.
Qxc2 {[%clk 0:00:57.4]} 21... Rxc2+ {[%clk 0:00:24.9]} 22. Kb1 {[%clk
0:00:58.5]} 22... Rc6 {[%clk 0:00:24.6]} 23. Rc1 {[%clk 0:00:27.3]} 23... Rb6
{[%clk 0:00:21.2]} 24. a4 {[%clk 0:00:28.4]} 24... Rb7 {[%clk 0:00:16.8]} 25.
Bxb4 {[%clk 0:00:29.1]} 25... axb4 {[%clk 0:00:18.7]} 26. b3 {[%clk 0:00:28.8]}
26... d5 {[%clk 0:00:17.1]} 27. Rc6 {[%clk 0:00:29.4]} 27... e6 {[%clk
0:00:16.5]} 28. Rhc1 {[%clk 0:00:30.5]} 28... h5 {[%clk 0:00:17.3]} 29. Rc7
{[%clk 0:00:29.8]} 29... Rfb8 {[%clk 0:00:18.4]} 30. Rxb7 {[%clk 0:00:30.5]}
30... Rxb7 {[%clk 0:00:20.3]} 31. Rc7 {[%clk 0:00:30.2]} 31... Rxc7 {[%clk
0:00:20.8]} 32. Nxc7 {[%clk 0:00:30.7]} 32... Bxd4 {[%clk 0:00:22.7]} 33. Nb5
{[%clk 0:00:30.9]} 33... Bb6 {[%clk 0:00:23.8]} 34. Nd6 {[%clk 0:00:29]} 34...
Kf8 {[%clk 0:00:23.3]} 35. Kc2 {[%clk 0:00:28.7]} 35... Bc7 {[%clk 0:00:14]} 36.
Nb5 {[%clk 0:00:29.3]} 36... Bb6 {[%clk 0:00:14]} 37. Nd6 {[%clk 0:00:30.1]}
37... Bc7 {[%clk 0:00:13]} 38. Nb5 {[%clk 0:00:31.3]} 38... Ba5 {[%clk
0:00:11.2]} 39. Nd4 {[%clk 0:00:30.9]} 39... Ke8 {[%clk 0:00:11]} 40. Nc6 {[%clk
0:00:32]} 40... Bb6 {[%clk 0:00:12.4]} 41. Nxb4 {[%clk 0:00:33]} 41... Kd7
{[%clk 0:00:13.7]} 42. Nd3 {[%clk 0:00:33.7]} 42... Kd6 {[%clk 0:00:13.4]} 43.
b4 {[%clk 0:00:34.8]} 43... e5 {[%clk 0:00:14.6]} 44. a5 {[%clk 0:00:36.5]}
44... Bd4 {[%clk 0:00:13]} 45. b5 {[%clk 0:00:37.1]} 45... e4 {[%clk 0:00:14.5]}
46. fxe4 {[%clk 0:00:35.2]} 46... dxe4 {[%clk 0:00:16.4]} 47. Nb4 {[%clk
0:00:34.4]} 47... e3 {[%clk 0:00:11]} 48. Kd3 {[%clk 0:00:34.5]} 48... e2 {[%clk
0:00:07.4]} 49. Kxe2 {[%clk 0:00:30.8]} 49... Bc3 {[%clk 0:00:07.1]} 50. Nc6
{[%clk 0:00:31.5]} 50... Kc5 {[%clk 0:00:08.5]} 51. a6 {[%clk 0:00:32.9]} 51...
Kb6 {[%clk 0:00:08.7]} 52. Kd3 {[%clk 0:00:30.5]} 52... Bf6 {[%clk 0:00:09.9]}
53. Kc4 {[%clk 0:00:31.5]} 53... Bg5 {[%clk 0:00:10.5]} 54. Nb4 {[%clk
0:00:32.4]} 54... Bd8 {[%clk 0:00:07.1]} 55. Nd5+ {[%clk 0:00:34.3]} 55... Ka7
{[%clk 0:00:09]} 56. Kc5 {[%clk 0:00:35.5]} 1-0

[Event "*** Titled Tuesday 3|2 Blitz"]
[Site "Chess.com"]
[Date "2017.03.07"]
[Round "7"]
[White "Keranke"]
[Black "Incognito_Knight"]
[Result "0-1"]
[WhiteElo "2693"]
[BlackElo "2415"]
[TimeControl "180+2"]
[EndTime "14:39:08 PST"]
[Termination "Incognito_Knight won by resignation"]

1. d4 {[%clk 0:03:02]} 1... d5 {[%clk 0:03:00.2]} 2. Bf4 {[%clk 0:03:03.4]} 2...
Nf6 {[%clk 0:03:00.3]} 3. e3 {[%clk 0:03:04.5]} 3... c5 {[%clk 0:03:01.5]} 4.
Nc3 {[%clk 0:03:05.7]} 4... cxd4 {[%clk 0:02:51.8]} 5. exd4 {[%clk 0:03:06.7]}
5... e6 {[%clk 0:02:47.1]} 6. Nb5 {[%clk 0:03:03.5]} 6... Na6 {[%clk 0:02:47.5]}
7. Nf3 {[%clk 0:03:04.1]} 7... Bd7 {[%clk 0:02:38.5]} 8. c3 {[%clk 0:03:02.4]}
8... Qb6 {[%clk 0:02:27.9]} 9. a4 {[%clk 0:03:01.6]} 9... Nh5 {[%clk 0:02:19.7]}
10. Be5 {[%clk 0:02:59.4]} 10... f6 {[%clk 0:02:17.5]} 11. Nd2 {[%clk
0:02:42.2]} 11... g6 {[%clk 0:02:08.2]} 12. Bg3 {[%clk 0:02:37.5]} 12... Kf7
{[%clk 0:02:01.7]} 13. Bd3 {[%clk 0:02:32.4]} 13... Nxg3 {[%clk 0:01:58.5]} 14.
hxg3 {[%clk 0:02:33.4]} 14... Nc7 {[%clk 0:01:33.5]} 15. Nxc7 {[%clk 0:02:19.9]}
15... Qxc7 {[%clk 0:01:35.4]} 16. Qc2 {[%clk 0:02:21.5]} 16... f5 {[%clk
0:01:22.6]} 17. Nf3 {[%clk 0:02:20.6]} 17... Bg7 {[%clk 0:01:18.9]} 18. Kf1
{[%clk 0:01:54]} 18... Bf6 {[%clk 0:01:09.9]} 19. Re1 {[%clk 0:01:52.1]} 19...
Qa5 {[%clk 0:01:10.2]} 20. Ne5+ {[%clk 0:01:28.8]} 20... Bxe5 {[%clk 0:01:10.8]}
21. Rxe5 {[%clk 0:01:30.7]} 21... Qxa4 {[%clk 0:01:09]} 22. Qd2 {[%clk
0:01:31.4]} 22... Bb5 {[%clk 0:01:04.4]} 23. Re1 {[%clk 0:01:09.5]} 23... h5
{[%clk 0:00:54.9]} 24. f3 {[%clk 0:01:06.1]} 24... Bxd3+ {[%clk 0:00:54.4]} 25.
Qxd3 {[%clk 0:01:07.2]} 25... Qc4 {[%clk 0:00:54]} 26. Qxc4 {[%clk 0:01:01.7]}
26... dxc4 {[%clk 0:00:55.9]} 27. Re5 {[%clk 0:01:03.6]} 27... Rhd8 {[%clk
0:00:50]} 28. g4 {[%clk 0:00:57.1]} 28... fxg4 {[%clk 0:00:39.6]} 29. fxg4
{[%clk 0:00:58.1]} 29... hxg4 {[%clk 0:00:36.7]} 30. Rh7+ {[%clk 0:00:58.6]}
30... Kf6 {[%clk 0:00:37.8]} 31. Rxb7 {[%clk 0:00:59.2]} 31... Rdb8 {[%clk
0:00:38.3]} 32. Reb5 {[%clk 0:00:57.6]} 32... Rxb7 {[%clk 0:00:38.7]} 33. Rxb7
{[%clk 0:00:59.5]} 33... a5 {[%clk 0:00:39.7]} 34. Rb6 {[%clk 0:00:45.3]} 34...
Rd8 {[%clk 0:00:20.7]} 35. Rb5 {[%clk 0:00:41.7]} 35... Rd5 {[%clk 0:00:21.2]}
36. Rb8 {[%clk 0:00:32.5]} 36... Rf5+ {[%clk 0:00:21.7]} 37. Ke2 {[%clk
0:00:33.5]} 37... g3 {[%clk 0:00:22.9]} 38. Ke3 {[%clk 0:00:35]} 38... Kg5
{[%clk 0:00:20.5]} 39. Re8 {[%clk 0:00:29.6]} 39... Rf2 {[%clk 0:00:19.2]} 40.
Rxe6 {[%clk 0:00:30.6]} 40... Rxg2 {[%clk 0:00:19.6]} 41. Kf3 {[%clk 0:00:32]}
41... Rxb2 {[%clk 0:00:19.9]} 42. Kxg3 {[%clk 0:00:33.5]} 42... Rc2 {[%clk
0:00:20]} 43. Re5+ {[%clk 0:00:34.8]} 43... Kf6 {[%clk 0:00:21]} 44. Rxa5 {[%clk
0:00:34.5]} 44... Rxc3+ {[%clk 0:00:22.3]} 45. Kf4 {[%clk 0:00:36.1]} 45... Rc1
{[%clk 0:00:22.2]} 46. Ra6+ {[%clk 0:00:37.4]} 46... Kf7 {[%clk 0:00:22.9]} 47.
Ke5 {[%clk 0:00:33.9]} 47... Re1+ {[%clk 0:00:23.8]} 48. Kd5 {[%clk 0:00:30.9]}
48... c3 {[%clk 0:00:24.9]} 49. Rc6 {[%clk 0:00:29.7]} 49... Re3 {[%clk
0:00:25.5]} 50. Rc7+ {[%clk 0:00:21.5]} 50... Kf6 {[%clk 0:00:25.6]} 51. Kd6
{[%clk 0:00:21.9]} 51... Re6+ {[%clk 0:00:22.4]} 52. Kd5 {[%clk 0:00:22.4]}
52... Re3 {[%clk 0:00:23.4]} 53. Kd6 {[%clk 0:00:23.9]} 53... g5 {[%clk
0:00:24.8]} 54. d5 {[%clk 0:00:24.3]} 54... g4 {[%clk 0:00:25.7]} 55. Rc8 {[%clk
0:00:22.3]} 55... g3 {[%clk 0:00:25.1]} 56. Kd7 {[%clk 0:00:22.9]} 56... g2
{[%clk 0:00:22.6]} 0-1

[Event "*** Titled Tuesday 3|2 Blitz"]
[Site "Chess.com"]
[Date "2017.03.07"]
[Round "7"]
[White "Alexander_Moskalenko"]
[Black "SwiftyMcBishop"]
[Result "0-1"]
[WhiteElo "2693"]
[BlackElo "2228"]
[TimeControl "180+2"]
[EndTime "14:39:16 PST"]
[Termination "SwiftyMcBishop won on time"]

1. d4 {[%clk 0:02:23.9]} 1... d5 {[%clk 0:02:57.8]} 2. c4 {[%clk 0:02:24.7]}
2... dxc4 {[%clk 0:02:58.8]} 3. e4 {[%clk 0:02:24.4]} 3... e5 {[%clk 0:02:59.3]}
4. Nf3 {[%clk 0:02:17.7]} 4... exd4 {[%clk 0:02:57.4]} 5. Bxc4 {[%clk
0:02:18.3]} 5... c5 {[%clk 0:02:50.5]} 6. Ne5 {[%clk 0:02:11]} 6... Be6 {[%clk
0:02:48.6]} 7. Bxe6 {[%clk 0:02:12]} 7... fxe6 {[%clk 0:02:47.4]} 8. Qh5+ {[%clk
0:02:13.6]} 8... g6 {[%clk 0:02:43.9]} 9. Nxg6 {[%clk 0:02:13.6]} 9... Nf6
{[%clk 0:02:44]} 10. Qh3 {[%clk 0:02:13.5]} 10... hxg6 {[%clk 0:02:28.7]} 11.
Qxh8 {[%clk 0:02:15]} 11... Nxe4 {[%clk 0:02:25.6]} 12. Nd2 {[%clk 0:02:16.6]}
12... Nxd2 {[%clk 0:02:20.5]} 13. Bxd2 {[%clk 0:02:16.4]} 13... Nd7 {[%clk
0:02:20.8]} 14. h4 {[%clk 0:01:44.3]} 14... Qf6 {[%clk 0:02:16]} 15. Qxf6 {[%clk
0:01:29]} 15... Nxf6 {[%clk 0:02:15.6]} 16. b3 {[%clk 0:01:22.1]} 16... Kf7
{[%clk 0:02:13.1]} 17. f3 {[%clk 0:01:22.4]} 17... b5 {[%clk 0:02:09.1]} 18. a4
{[%clk 0:01:21.4]} 18... c4 {[%clk 0:02:07.1]} 19. axb5 {[%clk 0:01:22.5]} 19...
c3 {[%clk 0:02:02.5]} 20. Bg5 {[%clk 0:01:23.5]} 20... Nd5 {[%clk 0:02:00.4]}
21. Ra4 {[%clk 0:01:08.3]} 21... d3 {[%clk 0:01:44.6]} 22. Rd4 {[%clk
0:01:08.3]} 22... d2+ {[%clk 0:01:39.4]} 23. Ke2 {[%clk 0:00:55]} 23... a5
{[%clk 0:01:32.9]} 24. bxa6 {[%clk 0:00:31.3]} 24... Rxa6 {[%clk 0:01:33.3]} 25.
Ra4 {[%clk 0:00:32.8]} 25... Rb6 {[%clk 0:01:29.8]} 26. Ra7+ {[%clk 0:00:33.6]}
26... Kg8 {[%clk 0:01:30]} 27. Bxd2 {[%clk 0:00:17.1]} 27... cxd2 {[%clk
0:01:27.9]} 28. Kxd2 {[%clk 0:00:18.7]} 28... Rxb3 {[%clk 0:01:27]} 29. h5
{[%clk 0:00:19]} 29... gxh5 {[%clk 0:01:21.6]} 30. Rxh5 {[%clk 0:00:18.3]} 30...
Bc5 {[%clk 0:01:18.3]} 31. Ra8+ {[%clk 0:00:11.5]} 31... Kg7 {[%clk 0:01:12.1]}
32. Rhh8 {[%clk 0:00:12.8]} 32... Bb4+ {[%clk 0:01:05.9]} 33. Kc2 {[%clk
0:00:13.1]} 33... Rc3+ {[%clk 0:01:03.9]} 34. Kb2 {[%clk 0:00:14]} 34... Re3
{[%clk 0:01:01.9]} 35. Rhb8 {[%clk 0:00:12.2]} 35... Kg6 {[%clk 0:00:54.1]} 36.
Rg8+ {[%clk 0:00:09.5]} 36... Kf5 {[%clk 0:00:41.6]} 37. Ra7 {[%clk 0:00:08.6]}
37... Ke5 {[%clk 0:00:36.4]} 38. Ra4 {[%clk 0:00:06]} 38... Re2+ {[%clk
0:00:32]} 39. Kb3 {[%clk 0:00:06.3]} 39... Bc5 {[%clk 0:00:30.1]} 40. Re4+
{[%clk 0:00:05.5]} 40... Rxe4 {[%clk 0:00:27.6]} 41. fxe4 {[%clk 0:00:07.1]}
41... Kxe4 {[%clk 0:00:28.9]} 42. Kc4 {[%clk 0:00:07.8]} 42... Nf6 {[%clk
0:00:24.8]} 43. Rg6 {[%clk 0:00:07.2]} 43... Be7 {[%clk 0:00:21.6]} 44. g4
{[%clk 0:00:08.3]} 44... e5 {[%clk 0:00:20.4]} 45. Rg7 {[%clk 0:00:07.7]} 45...
Nd5 {[%clk 0:00:16.3]} 46. g5 {[%clk 0:00:08.5]} 46... Ne3+ {[%clk 0:00:09.5]}
47. Kc3 {[%clk 0:00:07.3]} 47... Nf5 {[%clk 0:00:09]} 48. Rg8 {[%clk 0:00:06.7]}
48... Kf3 {[%clk 0:00:08]} 49. g6 {[%clk 0:00:07]} 49... e4 {[%clk 0:00:07.4]}
50. Re8 {[%clk 0:00:06.2]} 50... e3 {[%clk 0:00:06.4]} 0-1

[Event "*** Titled Tuesday 3|2 Blitz"]
[Site "Chess.com"]
[Date "2017.03.07"]
[Round "7"]
[White "Outsmiter"]
[Black "Robin-Side"]
[Result "1-0"]
[WhiteElo "2105"]
[BlackElo "2439"]
[TimeControl "180+2"]
[EndTime "14:39:22 PST"]
[Termination "Outsmiter won by resignation"]

1. e4 {[%clk 0:03:02]} 1... g6 {[%clk 0:03:02]} 2. d4 {[%clk 0:03:02.6]} 2...
Bg7 {[%clk 0:03:03.9]} 3. Be2 {[%clk 0:03:02.4]} 3... e6 {[%clk 0:03:05.4]} 4.
h4 {[%clk 0:03:02.8]} 4... d5 {[%clk 0:03:04.2]} 5. e5 {[%clk 0:02:56.4]} 5...
f6 {[%clk 0:03:01.3]} 6. exf6 {[%clk 0:02:55.3]} 6... Nxf6 {[%clk 0:03:03.2]} 7.
h5 {[%clk 0:02:55.6]} 7... Nc6 {[%clk 0:02:50]} 8. hxg6 {[%clk 0:02:37.2]} 8...
hxg6 {[%clk 0:02:49.4]} 9. Rxh8+ {[%clk 0:02:39.1]} 9... Bxh8 {[%clk 0:02:51.3]}
10. Nf3 {[%clk 0:02:29.6]} 10... Qe7 {[%clk 0:02:47.8]} 11. Nc3 {[%clk
0:02:29.4]} 11... Bd7 {[%clk 0:02:48.8]} 12. Bg5 {[%clk 0:02:24.8]} 12... O-O-O
{[%clk 0:02:44.7]} 13. Qd2 {[%clk 0:02:25.7]} 13... Bg7 {[%clk 0:02:37.3]} 14.
O-O-O {[%clk 0:02:26]} 14... Qf7 {[%clk 0:02:37.9]} 15. Ne5 {[%clk 0:02:25.6]}
15... Qe8 {[%clk 0:02:30.5]} 16. Qf4 {[%clk 0:02:03.2]} 16... Qf8 {[%clk
0:01:21.8]} 17. Nxg6 {[%clk 0:02:02.7]} 17... Qf7 {[%clk 0:01:22.9]} 18. Ne5
{[%clk 0:01:57.3]} 18... Qf8 {[%clk 0:01:23.5]} 19. Qh4 {[%clk 0:01:48.8]} 19...
Re8 {[%clk 0:01:23.5]} 20. Rh1 {[%clk 0:01:36.9]} 20... Ne7 {[%clk 0:01:18.8]}
21. f3 {[%clk 0:01:27.2]} 21... Nf5 {[%clk 0:01:18.3]} 22. Qf2 {[%clk
0:01:23.1]} 22... Qd6 {[%clk 0:01:09.1]} 23. g4 {[%clk 0:01:16.1]} 23... Ne7
{[%clk 0:01:10]} 24. Nf7 {[%clk 0:01:02.6]} 24... Qb6 {[%clk 0:01:07.4]} 25. Be3
{[%clk 0:00:47.7]} 25... Rf8 {[%clk 0:00:59.4]} 26. Ne5 {[%clk 0:00:47.7]} 26...
Nc6 {[%clk 0:00:56.9]} 27. g5 {[%clk 0:00:39.1]} 27... Ne8 {[%clk 0:00:27.3]}
28. Nxd7 {[%clk 0:00:39.2]} 28... Kxd7 {[%clk 0:00:29.2]} 29. Na4 {[%clk
0:00:38.8]} 29... Qa5 {[%clk 0:00:25.1]} 30. Nc5+ {[%clk 0:00:39.3]} 30... Kc8
{[%clk 0:00:21.2]} 31. Kb1 {[%clk 0:00:26.9]} 31... e5 {[%clk 0:00:18.3]} 32.
Ne6 {[%clk 0:00:24.2]} 32... Rg8 {[%clk 0:00:19.5]} 33. Nxg7 {[%clk 0:00:24.5]}
33... Nxg7 {[%clk 0:00:21.4]} 34. dxe5 {[%clk 0:00:25.3]} 34... Nxe5 {[%clk
0:00:22.8]} 35. Bd4 {[%clk 0:00:26.1]} 35... Nc6 {[%clk 0:00:16.5]} 36. Bf6
{[%clk 0:00:25.2]} 36... Kb8 {[%clk 0:00:14.6]} 37. Qe1 {[%clk 0:00:20.9]} 37...
Qc5 {[%clk 0:00:11.7]} 38. Qc3 {[%clk 0:00:19.2]} 38... Qf8 {[%clk 0:00:10.1]}
39. Bb5 {[%clk 0:00:19.9]} 39... Nd8 {[%clk 0:00:05.7]} 40. Be5 {[%clk 0:00:20]}
40... Nde6 {[%clk 0:00:06.3]} 41. Bd7 {[%clk 0:00:19.8]} 41... Qe7 {[%clk
0:00:06]} 42. Bxe6 {[%clk 0:00:19.1]} 42... Nxe6 {[%clk 0:00:07.9]} 43. f4
{[%clk 0:00:20.3]} 43... a6 {[%clk 0:00:08.8]} 44. Re1 {[%clk 0:00:18.3]} 44...
Qd7 {[%clk 0:00:09.6]} 45. Qh3 {[%clk 0:00:17.4]} 45... Qc6 {[%clk 0:00:07.6]}
46. Qh7 {[%clk 0:00:16.2]} 46... Rc8 {[%clk 0:00:08.1]} 47. Qf7 {[%clk
0:00:15.3]} 47... Nc5 {[%clk 0:00:08]} 48. g6 {[%clk 0:00:14.6]} 48... Ne4
{[%clk 0:00:08.9]} 49. g7 {[%clk 0:00:13.8]} 49... Qe8 {[%clk 0:00:04.9]} 50.
Qxe8 {[%clk 0:00:11.5]} 50... Rxe8 {[%clk 0:00:06.8]} 51. Rg1 {[%clk 0:00:12.1]}
51... Kc8 {[%clk 0:00:06.6]} 52. g8=Q {[%clk 0:00:11.8]} 52... Rxg8 {[%clk
0:00:04.8]} 53. Rxg8+ {[%clk 0:00:13.7]} 53... Kd7 {[%clk 0:00:06.7]} 54. Rg7+
{[%clk 0:00:14]} 54... Ke6 {[%clk 0:00:07.6]} 55. Rxc7 {[%clk 0:00:15.6]} 55...
b5 {[%clk 0:00:05.7]} 56. Ra7 {[%clk 0:00:16.2]} 56... Kf5 {[%clk 0:00:07.6]}
57. Rxa6 {[%clk 0:00:17]} 57... Kg4 {[%clk 0:00:08.6]} 58. Rb6 {[%clk
0:00:17.3]} 58... Kf3 {[%clk 0:00:10.5]} 59. Rxb5 {[%clk 0:00:17.4]} 59... Ke3
{[%clk 0:00:12.4]} 60. Rxd5 {[%clk 0:00:17.3]} 1-0

[Event "*** Titled Tuesday 3|2 Blitz"]
[Site "Chess.com"]
[Date "2017.03.07"]
[Round "7"]
[White "rithwik2002"]
[Black "Schoenbrunn"]
[Result "0-1"]
[WhiteElo "1790"]
[BlackElo "1871"]
[TimeControl "180+2"]
[EndTime "14:39:28 PST"]
[Termination "Schoenbrunn won on time"]

1. e4 {[%clk 0:03:02]} 1... e6 {[%clk 0:02:58.9]} 2. Nf3 {[%clk 0:02:40.6]} 2...
d5 {[%clk 0:02:57.9]} 3. e5 {[%clk 0:02:40.1]} 3... c5 {[%clk 0:02:56.6]} 4. b4
{[%clk 0:02:39.5]} 4... cxb4 {[%clk 0:02:01]} 5. a3 {[%clk 0:02:40.3]} 5... Nc6
{[%clk 0:01:56.5]} 6. d4 {[%clk 0:02:34.3]} 6... bxa3 {[%clk 0:01:45]} 7. c3
{[%clk 0:02:30.4]} 7... f6 {[%clk 0:01:30.3]} 8. Bd3 {[%clk 0:02:21.3]} 8... f5
{[%clk 0:01:24.8]} 9. Nxa3 {[%clk 0:02:09.5]} 9... Bd7 {[%clk 0:01:21.9]} 10.
O-O {[%clk 0:02:04.6]} 10... Nge7 {[%clk 0:01:14.2]} 11. Nb5 {[%clk 0:01:54.2]}
11... Ng6 {[%clk 0:01:13.2]} 12. Re1 {[%clk 0:01:49]} 12... Be7 {[%clk
0:01:07.4]} 13. Nd6+ {[%clk 0:01:36.5]} 13... Bxd6 {[%clk 0:01:07.3]} 14. exd6
{[%clk 0:01:38.4]} 14... O-O {[%clk 0:01:06.5]} 15. Rb1 {[%clk 0:01:28.5]} 15...
Na5 {[%clk 0:00:57.3]} 16. Ng5 {[%clk 0:01:12.2]} 16... Qe8 {[%clk 0:00:46.7]}
17. Qe2 {[%clk 0:01:08.5]} 17... Rf6 {[%clk 0:00:38.7]} 18. Nf3 {[%clk 0:00:58]}
18... h6 {[%clk 0:00:36.9]} 19. h4 {[%clk 0:00:51.9]} 19... b6 {[%clk
0:00:33.8]} 20. h5 {[%clk 0:00:36.7]} 20... Nh8 {[%clk 0:00:33.2]} 21. Bf4
{[%clk 0:00:32.6]} 21... Qxh5 {[%clk 0:00:30]} 22. Ne5 {[%clk 0:00:30.1]} 22...
Qe8 {[%clk 0:00:25.6]} 23. Nxd7 {[%clk 0:00:28.2]} 23... Qxd7 {[%clk 0:00:25.5]}
24. Bb5 {[%clk 0:00:26]} 24... Qf7 {[%clk 0:00:22]} 25. d7 {[%clk 0:00:23.9]}
25... Rd8 {[%clk 0:00:19.9]} 26. Be5 {[%clk 0:00:20.1]} 26... Rg6 {[%clk
0:00:18.4]} 27. Ra1 {[%clk 0:00:11.5]} 27... Rxd7 {[%clk 0:00:18.2]} 28. Bxd7
{[%clk 0:00:11.6]} 28... Qxd7 {[%clk 0:00:19.2]} 29. g3 {[%clk 0:00:13]} 29...
Nf7 {[%clk 0:00:16.8]} 30. Bf4 {[%clk 0:00:13.5]} 30... Nd6 {[%clk 0:00:16.7]}
31. Bxd6 {[%clk 0:00:14]} 31... Qxd6 {[%clk 0:00:17.1]} 32. Qe5 {[%clk
0:00:15.4]} 32... Qxe5 {[%clk 0:00:15]} 33. Rxe5 {[%clk 0:00:17.3]} 33... Rf6
{[%clk 0:00:13.6]} 34. f4 {[%clk 0:00:16.4]} 34... g5 {[%clk 0:00:13.3]} 35. Kf2
{[%clk 0:00:17.1]} 35... Kf7 {[%clk 0:00:13.6]} 36. fxg5 {[%clk 0:00:17.7]}
36... hxg5 {[%clk 0:00:13.9]} 37. Rh1 {[%clk 0:00:19.6]} 37... Nc4 {[%clk
0:00:11.2]} 38. Ree1 {[%clk 0:00:20.6]} 38... Nd2 {[%clk 0:00:10.5]} 39. Rh7+
{[%clk 0:00:19.2]} 39... Kg6 {[%clk 0:00:10.9]} 40. Rxa7 {[%clk 0:00:20.7]}
40... f4 {[%clk 0:00:11.7]} 41. Re7 {[%clk 0:00:17.2]} 41... Ne4+ {[%clk
0:00:10.5]} 42. Kg1 {[%clk 0:00:10.7]} 42... f3 {[%clk 0:00:09.7]} 43. Rb1
{[%clk 0:00:09.3]} 43... Nxg3 {[%clk 0:00:09.4]} 44. Rb2 {[%clk 0:00:07.8]}
44... Ne2+ {[%clk 0:00:08]} 45. Kf2 {[%clk 0:00:08.1]} 45... g4 {[%clk
0:00:09.3]} 46. Rxb6 {[%clk 0:00:06.2]} 46... g3+ {[%clk 0:00:09.9]} 47. Ke1
{[%clk 0:00:04.6]} 47... Nf4 {[%clk 0:00:04.5]} 48. Kf1 {[%clk 0:00:04.3]} 48...
g2+ {[%clk 0:00:02.6]} 49. Kf2 {[%clk 0:00:03.8]} 49... Nh3+ {[%clk 0:00:03.5]}
50. Kg3 {[%clk 0:00:04.3]} 50... g1=Q+ {[%clk 0:00:04]} 51. Kxh3 {[%clk
0:00:05.5]} 51... Kf5 {[%clk 0:00:04.6]} 52. Rexe6 {[%clk 0:00:02.7]} 52... Rxe6
{[%clk 0:00:04.3]} 53. Rb8 {[%clk 0:00:02.2]} 53... Qg4+ {[%clk 0:00:03.6]} 54.
Kh2 {[%clk 0:00:03.4]} 54... Re2+ {[%clk 0:00:04.1]} 0-1